[Event "Titled Tuesday Blitz March 28 Early 2023"]
[White "Vachier-Lagrave, Maxime"]
[Black "Le, Tuan Minh"]
[WhiteFideId "623539"]
[BlackFideId "12401153"]
[WhiteElo "2740"]
[BlackElo "2558"]
[Result "1-0"]
[Round "08"]
[TimeControl "180+2"]
[Date "2023.03.28"]
[WhiteClock "0:01:07"]
[BlackClock "0:00:05"]

1. e4 {[%clk 0:03:00]}  c5 {[%clk 0:02:54]} 2. Nf3 {[%clk 0:03:00]}  Nf6 {[%clk 0:02:51]} 3. Nc3 {[%clk 0:02:57]}  d5 {[%clk 0:02:51]} 4. Bb5+ {[%clk 0:02:57]}  Bd7 {[%clk 0:02:51]} 5. Bxd7+ {[%clk 0:02:55]}  Qxd7 {[%clk 0:02:50]} 6. e5 {[%clk 0:02:56]}  Ng8 {[%clk 0:02:48]} 7. d4 {[%clk 0:02:55]}  e6 {[%clk 0:02:46]} 8. O-O {[%clk 0:02:53]}  Nc6 {[%clk 0:02:45]} 9. Ne2 {[%clk 0:02:53]}  cxd4 {[%clk 0:02:44]} 10. Nexd4 {[%clk 0:02:54]}  Bc5 {[%clk 0:02:44]} 11. Nb3 {[%clk 0:02:52]}  Bb6 {[%clk 0:02:44]} 12. a4 {[%clk 0:02:53]}  a6 {[%clk 0:02:42]} 13. a5 {[%clk 0:02:53]}  Ba7 {[%clk 0:02:42]} 14. c3 {[%clk 0:02:50]}  Nge7 {[%clk 0:02:41]} 15. h4 {[%clk 0:02:47]}  O-O {[%clk 0:02:36]} 16. h5 {[%clk 0:02:47]}  f6 {[%clk 0:02:28]} 17. exf6 {[%clk 0:02:47]}  Rxf6 {[%clk 0:02:28]} 18. Be3 {[%clk 0:02:42]}  Bxe3 {[%clk 0:02:26]} 19. fxe3 {[%clk 0:02:43]}  Raf8 {[%clk 0:02:26]} 20. Qd3 {[%clk 0:02:32]}  Nf5 {[%clk 0:02:24]} 21. e4 {[%clk 0:02:15]}  Ng3 {[%clk 0:02:14]} 22. Rfe1 {[%clk 0:02:16]}  Nxh5 {[%clk 0:02:09]} 23. exd5 {[%clk 0:02:07]}  Nf4 {[%clk 0:01:59]} 24. Qd2 {[%clk 0:02:04]}  exd5 {[%clk 0:01:57]} 25. Ra4 {[%clk 0:02:02]}  Qg4 {[%clk 0:01:06]} 26. Qxd5+ {[%clk 0:02:01]}  Kh8 {[%clk 0:01:06]} 27. Rxf4 {[%clk 0:02:01]}  Rxf4 {[%clk 0:01:04]} 28. Nc5 {[%clk 0:01:53]}  Rxf3 {[%clk 0:01:03]} 29. Qxf3 {[%clk 0:01:53]}  Qc8 {[%clk 0:00:34]} 30. Qd5 {[%clk 0:01:45]}  h6 {[%clk 0:00:26]} 31. b4 {[%clk 0:01:43]}  Qg4 {[%clk 0:00:18]} 32. Qe4 {[%clk 0:01:31]}  Qg3 {[%clk 0:00:18]} 33. Qe3 {[%clk 0:01:32]}  Qg6 {[%clk 0:00:06]} 34. Nxb7 {[%clk 0:01:29]}  Rf6 {[%clk 0:00:05]} 35. Nc5 {[%clk 0:01:29]}  Rf8 {[%clk 0:00:03]} 36. Nxa6 {[%clk 0:01:20]}  Nxa5 {[%clk 0:00:04]} 37. Nc5 {[%clk 0:01:13]}  Nc4 {[%clk 0:00:03]} 38. Qd3 {[%clk 0:01:09]}  Qf6 {[%clk 0:00:02]} 39. Rf1 {[%clk 0:01:08]}  Qxf1+ {[%clk 0:00:03]} 40. Qxf1 {[%clk 0:01:08]}  Rxf1+ {[%clk 0:00:03]} 41. Kxf1 {[%clk 0:01:09]}  Kg8 {[%clk 0:00:04]} 42. Ke2 {[%clk 0:01:09]}  Kf7 {[%clk 0:00:05]} 43. Kd3 {[%clk 0:01:07]}  Nd6 {[%clk 0:00:05]} 44. Ne4 {[%clk 0:01:07]}  Nf5 {[%clk 0:00:05]} 45. c4 {[%clk 0:01:07]}  Ke7 {[%clk 0:00:05]} 46. b5 {[%clk 0:01:07]}  g6 {[%clk 0:00:04]} 47. c5 {[%clk 0:01:07]}  h5 {[%clk 0:00:04]} 48. Kc4 {[%clk 0:01:07]}  Ne3+ {[%clk 0:00:04]} 49. Kb4 {[%clk 0:01:05]}  Nxg2 {[%clk 0:00:04]} 50. b6 {[%clk 0:01:05]}  Kd7 {[%clk 0:00:05]} 51. Kb5 {[%clk 0:01:06]}  Nf4 {[%clk 0:00:05]} 52. c6+ {[%clk 0:01:06]}  Kd8 {[%clk 0:00:05]} 53. c7+ {[%clk 0:01:07]}  Kd7 {[%clk 0:00:05]} 54. Nc5+ {[%clk 0:01:07]} 1-0


[Site "https://www.chess.com"]

[Event "Titled Tuesday Blitz March 28 Early 2023"]
[White "Dubov, Daniil"]
[Black "Deac, Bogdan-Daniel"]
[WhiteFideId "24126055"]
[BlackFideId "1226380"]
[WhiteElo "2802"]
[BlackElo "2649"]
[Result "1/2-1/2"]
[Round "08"]
[TimeControl "180+2"]
[Date "2023.03.28"]
[WhiteClock "0:00:06"]
[BlackClock "0:00:25"]

1. d4 {[%clk 0:03:00]}  Nf6 {[%clk 0:02:59]} 2. c4 {[%clk 0:03:01]}  e6 {[%clk 0:03:00]} 3. Nc3 {[%clk 0:03:02]}  Bb4 {[%clk 0:02:59]} 4. e3 {[%clk 0:03:02]}  O-O {[%clk 0:02:58]} 5. Bd3 {[%clk 0:03:03]}  d5 {[%clk 0:02:59]} 6. a3 {[%clk 0:03:03]}  Bxc3+ {[%clk 0:02:59]} 7. bxc3 {[%clk 0:03:04]}  dxc4 {[%clk 0:03:00]} 8. Bxc4 {[%clk 0:03:05]}  c5 {[%clk 0:03:01]} 9. Ne2 {[%clk 0:03:05]}  Qc7 {[%clk 0:03:01]} 10. Ba2 {[%clk 0:03:05]}  b6 {[%clk 0:03:00]} 11. O-O {[%clk 0:03:05]}  Ba6 {[%clk 0:03:00]} 12. Bb2 {[%clk 0:03:05]}  Nc6 {[%clk 0:02:53]} 13. c4 {[%clk 0:03:04]}  cxd4 {[%clk 0:02:52]} 14. exd4 {[%clk 0:03:04]}  Rfd8 {[%clk 0:02:52]} 15. Rc1 {[%clk 0:03:04]}  b5 {[%clk 0:02:52]} 16. d5 {[%clk 0:03:00]}  bxc4 {[%clk 0:02:35]} 17. Bxc4 {[%clk 0:02:57]}  Bxc4 {[%clk 0:02:35]} 18. Rxc4 {[%clk 0:02:58]}  Nxd5 {[%clk 0:02:21]} 19. Nd4 {[%clk 0:02:10]}  Nde7 {[%clk 0:01:54]} 20. Qf3 {[%clk 0:01:21]}  Rac8 {[%clk 0:01:12]} 21. Nxc6 {[%clk 0:00:38]}  Nxc6 {[%clk 0:01:11]} 22. Rfc1 {[%clk 0:00:32]}  Qb6 {[%clk 0:01:05]} 23. Qc3 {[%clk 0:00:20]}  f6 {[%clk 0:01:00]} 24. h3 {[%clk 0:00:07]}  Ne7 {[%clk 0:00:56]} 25. Rxc8 {[%clk 0:00:03]}  Rxc8 {[%clk 0:00:56]} 26. Qd2 {[%clk 0:00:03]}  Rxc1+ {[%clk 0:00:55]} 27. Bxc1 {[%clk 0:00:04]}  Nd5 {[%clk 0:00:53]} 28. Qe2 {[%clk 0:00:05]}  Kf7 {[%clk 0:00:53]} 29. Qh5+ {[%clk 0:00:04]}  Kf8 {[%clk 0:00:47]} 30. Qxh7 {[%clk 0:00:05]}  Qb3 {[%clk 0:00:47]} 31. Qh8+ {[%clk 0:00:05]}  Kf7 {[%clk 0:00:47]} 32. Qh5+ {[%clk 0:00:05]}  Kf8 {[%clk 0:00:39]} 33. Qh8+ {[%clk 0:00:05]}  Kf7 {[%clk 0:00:39]} 34. Qh5+ {[%clk 0:00:06]}  Kf8 {[%clk 0:00:25]} 35. Qh8+ {[%clk 0:00:06]} 1/2-1/2


[Site "https://www.chess.com"]

[Event "Titled Tuesday Blitz March 28 Early 2023"]
[White "Fedoseev, Vladimir"]
[Black "Dardha, Daniel"]
[WhiteFideId "24130737"]
[BlackFideId "240990"]
[WhiteElo "2752"]
[BlackElo "2581"]
[Result "0-1"]
[Round "08"]
[TimeControl "180+2"]
[Date "2023.03.28"]
[WhiteClock "0:00:06"]
[BlackClock "0:00:04"]

1. e4 {[%clk 0:02:31]}  c5 {[%clk 0:02:52]} 2. Nf3 {[%clk 0:02:31]}  d6 {[%clk 0:02:52]} 3. d4 {[%clk 0:02:29]}  cxd4 {[%clk 0:02:53]} 4. Nxd4 {[%clk 0:02:30]}  Nf6 {[%clk 0:02:53]} 5. Nc3 {[%clk 0:02:30]}  a6 {[%clk 0:02:51]} 6. Rg1 {[%clk 0:02:30]}  h5 {[%clk 0:02:50]} 7. Bg5 {[%clk 0:02:29]}  Nbd7 {[%clk 0:02:50]} 8. Qd2 {[%clk 0:02:28]}  b5 {[%clk 0:02:49]} 9. O-O-O {[%clk 0:02:19]}  Bb7 {[%clk 0:02:49]} 10. f3 {[%clk 0:02:16]}  Rc8 {[%clk 0:02:49]} 11. Kb1 {[%clk 0:02:10]}  g6 {[%clk 0:02:48]} 12. Nd5 {[%clk 0:01:54]}  Bg7 {[%clk 0:02:40]} 13. Nxf6+ {[%clk 0:01:44]}  Nxf6 {[%clk 0:02:38]} 14. Be2 {[%clk 0:01:29]}  Qc7 {[%clk 0:02:25]} 15. h3 {[%clk 0:01:29]}  h4 {[%clk 0:02:23]} 16. Rc1 {[%clk 0:01:27]}  Nd7 {[%clk 0:02:11]} 17. Rgd1 {[%clk 0:01:15]}  Nb6 {[%clk 0:02:00]} 18. Qe1 {[%clk 0:01:12]}  e5 {[%clk 0:01:51]} 19. Nb3 {[%clk 0:01:11]}  d5 {[%clk 0:01:51]} 20. Bd3 {[%clk 0:00:58]}  dxe4 {[%clk 0:01:41]} 21. Bxe4 {[%clk 0:00:54]}  Nc4 {[%clk 0:01:34]} 22. Bxb7 {[%clk 0:00:36]}  Qxb7 {[%clk 0:01:34]} 23. Na5 {[%clk 0:00:37]}  Nxa5 {[%clk 0:01:14]} 24. Qxa5 {[%clk 0:00:38]}  O-O {[%clk 0:01:14]} 25. Qe1 {[%clk 0:00:31]}  Rc4 {[%clk 0:01:11]} 26. b3 {[%clk 0:00:27]}  e4 {[%clk 0:01:08]} 27. c3 {[%clk 0:00:19]}  Rc5 {[%clk 0:01:00]} 28. Be3 {[%clk 0:00:13]}  Rc7 {[%clk 0:00:59]} 29. f4 {[%clk 0:00:12]}  Rfc8 {[%clk 0:00:58]} 30. Bd4 {[%clk 0:00:13]}  e3 {[%clk 0:00:52]} 31. Qxe3 {[%clk 0:00:12]}  Qxg2 {[%clk 0:00:50]} 32. Bxg7 {[%clk 0:00:12]}  Kxg7 {[%clk 0:00:51]} 33. f5 {[%clk 0:00:13]}  Qg3 {[%clk 0:00:42]} 34. Qd4+ {[%clk 0:00:13]}  Kh7 {[%clk 0:00:36]} 35. Rd3 {[%clk 0:00:13]}  Qg5 {[%clk 0:00:32]} 36. Rf1 {[%clk 0:00:14]}  Re8 {[%clk 0:00:22]} 37. Rf4 {[%clk 0:00:14]}  Kg8 {[%clk 0:00:11]} 38. fxg6 {[%clk 0:00:11]}  fxg6 {[%clk 0:00:12]} 39. Kb2 {[%clk 0:00:03]}  Re2+ {[%clk 0:00:06]} 40. Ka3 {[%clk 0:00:03]}  Qe7+ {[%clk 0:00:05]} 41. b4 {[%clk 0:00:03]}  Rc8 {[%clk 0:00:04]} 42. Rxh4 {[%clk 0:00:03]}  Re5 {[%clk 0:00:03]} 43. Rg4 {[%clk 0:00:03]}  Kh7 {[%clk 0:00:02]} 44. Rdg3 {[%clk 0:00:03]}  Rc4 {[%clk 0:00:02]} 45. Qd3 {[%clk 0:00:02]}  Rxg4 {[%clk 0:00:02]} 46. Rxg4 {[%clk 0:00:03]}  Rf5 {[%clk 0:00:02]} 47. h4 {[%clk 0:00:03]}  Qe6 {[%clk 0:00:01]} 48. Re4 {[%clk 0:00:04]}  Qf7 {[%clk 0:00:01]} 49. Rd4 {[%clk 0:00:04]}  Rf2 {[%clk 0:00:01]} 50. Qd2 {[%clk 0:00:04]}  Rxd2 {[%clk 0:00:01]} 51. Rd3 {[%clk 0:00:04]}  Rxd3 {[%clk 0:00:01]} 52. Kb2 {[%clk 0:00:04]}  Re3 {[%clk 0:00:02]} 53. Kc2 {[%clk 0:00:05]}  Qe7 {[%clk 0:00:03]} 54. Kd2 {[%clk 0:00:06]}  Qe4 {[%clk 0:00:04]} 0-1


[Site "https://www.chess.com"]

[Event "Titled Tuesday Blitz March 28 Early 2023"]
[White "Hansen, Eric"]
[Black "Lazavik, Denis"]
[WhiteFideId "2606771"]
[BlackFideId "13515110"]
[WhiteElo "2569"]
[BlackElo "2560"]
[Result "0-1"]
[Round "08"]
[TimeControl "180+2"]
[Date "2023.03.28"]
[WhiteClock "0:00:02"]
[BlackClock "0:00:08"]

1. d4 {[%clk 0:03:00]}  Nf6 {[%clk 0:02:59]} 2. c4 {[%clk 0:03:00]}  e6 {[%clk 0:02:59]} 3. Nc3 {[%clk 0:03:00]}  Bb4 {[%clk 0:02:59]} 4. e3 {[%clk 0:02:57]}  O-O {[%clk 0:02:59]} 5. Bd2 {[%clk 0:02:57]}  c5 {[%clk 0:02:58]} 6. Nge2 {[%clk 0:02:50]}  cxd4 {[%clk 0:02:49]} 7. Nxd4 {[%clk 0:02:41]}  Nc6 {[%clk 0:02:47]} 8. a3 {[%clk 0:02:38]}  Be7 {[%clk 0:02:43]} 9. Be2 {[%clk 0:02:14]}  d5 {[%clk 0:02:38]} 10. cxd5 {[%clk 0:02:06]}  Nxd4 {[%clk 0:02:38]} 11. exd4 {[%clk 0:02:07]}  Nxd5 {[%clk 0:02:36]} 12. O-O {[%clk 0:02:06]}  Bf6 {[%clk 0:02:34]} 13. Bf3 {[%clk 0:02:02]}  Ne7 {[%clk 0:02:16]} 14. Ne4 {[%clk 0:01:51]}  Bxd4 {[%clk 0:02:15]} 15. Bb4 {[%clk 0:01:50]}  e5 {[%clk 0:02:15]} 16. Rc1 {[%clk 0:01:44]}  Be6 {[%clk 0:01:42]} 17. Nc5 {[%clk 0:01:26]}  Bd5 {[%clk 0:01:36]} 18. Nxb7 {[%clk 0:01:24]}  Bxb7 {[%clk 0:01:30]} 19. Bxb7 {[%clk 0:01:23]}  Rb8 {[%clk 0:01:27]} 20. Be4 {[%clk 0:01:04]}  a5 {[%clk 0:01:25]} 21. Bc3 {[%clk 0:01:05]}  Qb6 {[%clk 0:01:21]} 22. Bxd4 {[%clk 0:01:01]}  exd4 {[%clk 0:01:21]} 23. Rc2 {[%clk 0:01:01]}  Rfd8 {[%clk 0:01:18]} 24. Qd3 {[%clk 0:00:57]}  g6 {[%clk 0:01:17]} 25. Rfc1 {[%clk 0:00:57]}  Rd7 {[%clk 0:01:15]} 26. h4 {[%clk 0:00:54]}  Kg7 {[%clk 0:01:07]} 27. h5 {[%clk 0:00:48]}  Ng8 {[%clk 0:00:59]} 28. Qh3 {[%clk 0:00:42]}  Rbd8 {[%clk 0:00:53]} 29. Bd3 {[%clk 0:00:41]}  Re7 {[%clk 0:00:36]} 30. Qh4 {[%clk 0:00:30]}  Qf6 {[%clk 0:00:33]} 31. Qg3 {[%clk 0:00:20]}  Rd5 {[%clk 0:00:29]} 32. hxg6 {[%clk 0:00:18]}  hxg6 {[%clk 0:00:29]} 33. Rc6 {[%clk 0:00:17]}  Qe5 {[%clk 0:00:29]} 34. Qxe5+ {[%clk 0:00:17]}  Rdxe5 {[%clk 0:00:29]} 35. Kf1 {[%clk 0:00:17]}  Rb7 {[%clk 0:00:29]} 36. R1c2 {[%clk 0:00:17]}  Nf6 {[%clk 0:00:27]} 37. R6c4 {[%clk 0:00:16]}  Rd5 {[%clk 0:00:25]} 38. b4 {[%clk 0:00:15]}  axb4 {[%clk 0:00:24]} 39. Rxb4 {[%clk 0:00:16]}  Ra7 {[%clk 0:00:23]} 40. a4 {[%clk 0:00:16]}  Ng4 {[%clk 0:00:23]} 41. Rb5 {[%clk 0:00:12]}  Rd8 {[%clk 0:00:19]} 42. a5 {[%clk 0:00:11]}  Rh8 {[%clk 0:00:18]} 43. Kg1 {[%clk 0:00:08]}  Re7 {[%clk 0:00:18]} 44. Re2 {[%clk 0:00:07]}  Rc7 {[%clk 0:00:18]} 45. Rc2 {[%clk 0:00:02]}  Re7 {[%clk 0:00:15]} 46. Re2 {[%clk 0:00:02]}  Rc7 {[%clk 0:00:16]} 47. Rc2 {[%clk 0:00:03]}  Rxc2 {[%clk 0:00:16]} 48. Bxc2 {[%clk 0:00:03]}  Rc8 {[%clk 0:00:17]} 49. Rb2 {[%clk 0:00:03]}  Rc3 {[%clk 0:00:14]} 50. f3 {[%clk 0:00:01]}  Ne3 {[%clk 0:00:08]} 51. Be4 {[%clk 0:00:02]}  Rc1+ {[%clk 0:00:08]} 52. Kh2 {[%clk 0:00:02]}  Ra1 {[%clk 0:00:08]} 0-1


[Site "https://www.chess.com"]

[Event "Titled Tuesday Blitz March 28 Early 2023"]
[White "Sasikiran, Krishnan"]
[Black "Sadhwani, Raunak"]
[WhiteFideId "5004985"]
[BlackFideId "35093487"]
[WhiteElo "2567"]
[BlackElo "2631"]
[Result "1-0"]
[Round "08"]
[TimeControl "180+2"]
[Date "2023.03.28"]
[WhiteClock "0:00:58"]
[BlackClock "0:00:08"]

1. e4 {[%clk 0:03:00]}  d6 {[%clk 0:02:59]} 2. d4 {[%clk 0:03:00]}  g6 {[%clk 0:03:00]} 3. Nc3 {[%clk 0:02:59]}  Bg7 {[%clk 0:03:01]} 4. Be3 {[%clk 0:03:00]}  c6 {[%clk 0:03:01]} 5. h3 {[%clk 0:02:58]}  b5 {[%clk 0:03:02]} 6. Nf3 {[%clk 0:02:57]}  Nd7 {[%clk 0:02:59]} 7. Bd3 {[%clk 0:02:51]}  a6 {[%clk 0:02:51]} 8. Ne2 {[%clk 0:02:48]}  e5 {[%clk 0:02:50]} 9. c3 {[%clk 0:02:47]}  Ngf6 {[%clk 0:02:45]} 10. Ng3 {[%clk 0:02:46]}  O-O {[%clk 0:02:46]} 11. O-O {[%clk 0:02:46]}  Bb7 {[%clk 0:02:46]} 12. Qd2 {[%clk 0:02:42]}  Qc7 {[%clk 0:02:44]} 13. Rfe1 {[%clk 0:02:41]}  c5 {[%clk 0:02:42]} 14. d5 {[%clk 0:02:41]}  c4 {[%clk 0:02:35]} 15. Bc2 {[%clk 0:02:42]}  Nc5 {[%clk 0:02:31]} 16. b4 {[%clk 0:02:39]}  cxb3 {[%clk 0:02:31]} 17. axb3 {[%clk 0:02:39]}  Rfc8 {[%clk 0:02:26]} 18. Rec1 {[%clk 0:02:34]}  a5 {[%clk 0:02:16]} 19. Bh6 {[%clk 0:02:33]}  a4 {[%clk 0:02:11]} 20. Bxg7 {[%clk 0:02:28]}  Kxg7 {[%clk 0:02:10]} 21. b4 {[%clk 0:02:26]}  Nb3 {[%clk 0:02:05]} 22. Bxb3 {[%clk 0:02:26]}  axb3 {[%clk 0:02:06]} 23. Rxa8 {[%clk 0:02:26]}  Rxa8 {[%clk 0:02:07]} 24. Nf5+ {[%clk 0:02:12]}  gxf5 {[%clk 0:01:57]} 25. Qg5+ {[%clk 0:02:12]}  Kf8 {[%clk 0:01:57]} 26. Qxf6 {[%clk 0:02:12]}  b2 {[%clk 0:01:56]} 27. Rb1 {[%clk 0:01:33]}  Ra1 {[%clk 0:01:55]} 28. Ng5 {[%clk 0:01:31]}  Rxb1+ {[%clk 0:01:50]} 29. Kh2 {[%clk 0:01:32]}  Kg8 {[%clk 0:00:54]} 30. Qxf5 {[%clk 0:01:06]}  Rh1+ {[%clk 0:00:45]} 31. Kxh1 {[%clk 0:01:06]}  b1=Q+ {[%clk 0:00:46]} 32. Kh2 {[%clk 0:01:07]}  f6 {[%clk 0:00:23]} 33. Qxf6 {[%clk 0:01:01]}  Bc8 {[%clk 0:00:20]} 34. Ne6 {[%clk 0:00:57]}  Bxe6 {[%clk 0:00:14]} 35. dxe6 {[%clk 0:00:58]}  Qg7 {[%clk 0:00:08]} 36. Qd8+ {[%clk 0:00:57]}  Qf8 {[%clk 0:00:08]} 37. e7 {[%clk 0:00:58]} 1-0


[Site "https://www.chess.com"]

[Event "Titled Tuesday Blitz March 28 Early 2023"]
[White "Ibarra Jerez, Jose Carlos"]
[Black "Anton Guijarro, David"]
[WhiteFideId "2226332"]
[BlackFideId "2285525"]
[WhiteElo "2638"]
[BlackElo "2618"]
[Result "1-0"]
[Round "08"]
[TimeControl "180+2"]
[Date "2023.03.28"]
[WhiteClock "0:00:23"]
[BlackClock "0:00:09"]

1. e4 {[%clk 0:03:00]}  c6 {[%clk 0:02:59]} 2. Nf3 {[%clk 0:02:59]}  d5 {[%clk 0:02:59]} 3. d3 {[%clk 0:03:00]}  g6 {[%clk 0:02:59]} 4. Qe2 {[%clk 0:03:00]}  Bg7 {[%clk 0:02:58]} 5. g3 {[%clk 0:03:00]}  Nh6 {[%clk 0:02:57]} 6. Bg2 {[%clk 0:02:59]}  O-O {[%clk 0:02:56]} 7. e5 {[%clk 0:02:54]}  c5 {[%clk 0:02:51]} 8. O-O {[%clk 0:02:43]}  Nc6 {[%clk 0:02:50]} 9. h3 {[%clk 0:02:38]}  f6 {[%clk 0:02:43]} 10. e6 {[%clk 0:02:21]}  Nf5 {[%clk 0:02:14]} 11. c3 {[%clk 0:02:21]}  Nd6 {[%clk 0:01:52]} 12. h4 {[%clk 0:01:55]}  Ne8 {[%clk 0:01:19]} 13. Bf4 {[%clk 0:01:52]}  Nc7 {[%clk 0:01:19]} 14. Bh3 {[%clk 0:01:52]}  f5 {[%clk 0:01:14]} 15. Ng5 {[%clk 0:01:48]}  h6 {[%clk 0:01:11]} 16. Nf7 {[%clk 0:01:46]}  Rxf7 {[%clk 0:01:12]} 17. exf7+ {[%clk 0:01:47]}  Kxf7 {[%clk 0:01:13]} 18. Qd2 {[%clk 0:01:33]}  h5 {[%clk 0:00:57]} 19. Bxc7 {[%clk 0:01:20]}  Qxc7 {[%clk 0:00:58]} 20. Bg2 {[%clk 0:01:20]}  Qd6 {[%clk 0:00:52]} 21. c4 {[%clk 0:01:17]}  dxc4 {[%clk 0:00:46]} 22. dxc4 {[%clk 0:01:17]}  Be6 {[%clk 0:00:44]} 23. Qxd6 {[%clk 0:00:58]}  exd6 {[%clk 0:00:45]} 24. Nd2 {[%clk 0:00:57]}  Rb8 {[%clk 0:00:28]} 25. Rad1 {[%clk 0:00:52]}  Nd4 {[%clk 0:00:20]} 26. Rfe1 {[%clk 0:00:45]}  Bf6 {[%clk 0:00:20]} 27. b3 {[%clk 0:00:43]}  b6 {[%clk 0:00:19]} 28. Nf3 {[%clk 0:00:43]}  Nxf3+ {[%clk 0:00:19]} 29. Bxf3 {[%clk 0:00:43]}  Bd4 {[%clk 0:00:19]} 30. Re2 {[%clk 0:00:42]}  Kf6 {[%clk 0:00:14]} 31. Rde1 {[%clk 0:00:42]}  Be5 {[%clk 0:00:12]} 32. Bc6 {[%clk 0:00:38]}  Bf7 {[%clk 0:00:12]} 33. f4 {[%clk 0:00:36]}  Bd4+ {[%clk 0:00:11]} 34. Kg2 {[%clk 0:00:36]}  a6 {[%clk 0:00:06]} 35. Bd5 {[%clk 0:00:37]}  Bxd5+ {[%clk 0:00:07]} 36. cxd5 {[%clk 0:00:37]}  Rb7 {[%clk 0:00:08]} 37. Re6+ {[%clk 0:00:37]}  Kf7 {[%clk 0:00:08]} 38. Rxd6 {[%clk 0:00:37]}  b5 {[%clk 0:00:08]} 39. Rc6 {[%clk 0:00:25]}  Rd7 {[%clk 0:00:08]} 40. d6 {[%clk 0:00:26]}  Kf6 {[%clk 0:00:08]} 41. Re7 {[%clk 0:00:26]}  Rxe7 {[%clk 0:00:08]} 42. dxe7+ {[%clk 0:00:26]}  Kxe7 {[%clk 0:00:09]} 43. Rxa6 {[%clk 0:00:23]}  c4 {[%clk 0:00:08]} 44. bxc4 {[%clk 0:00:23]}  bxc4 {[%clk 0:00:09]} 45. Ra4 {[%clk 0:00:23]} 1-0


[Site "https://www.chess.com"]

[Event "Titled Tuesday Blitz March 28 Early 2023"]
[White "Demchenko, Anton"]
[Black "Mitrabha, Guha"]
[WhiteFideId "4160258"]
[BlackFideId "5057000"]
[WhiteElo "2545"]
[BlackElo "2507"]
[Result "1-0"]
[Round "08"]
[TimeControl "180+2"]
[Date "2023.03.28"]
[WhiteClock "0:01:17"]
[BlackClock "0:00:25"]

1. e4 {[%clk 0:03:00]}  c6 {[%clk 0:02:50]} 2. d4 {[%clk 0:03:00]}  d5 {[%clk 0:02:50]} 3. Nd2 {[%clk 0:03:01]}  dxe4 {[%clk 0:02:51]} 4. Nxe4 {[%clk 0:03:01]}  Nf6 {[%clk 0:02:52]} 5. Qd3 {[%clk 0:03:00]}  Nxe4 {[%clk 0:02:49]} 6. Qxe4 {[%clk 0:03:01]}  Nd7 {[%clk 0:02:49]} 7. Nf3 {[%clk 0:03:01]}  Nf6 {[%clk 0:02:50]} 8. Qd3 {[%clk 0:03:01]}  Bg4 {[%clk 0:02:50]} 9. Ne5 {[%clk 0:02:59]}  Bh5 {[%clk 0:02:50]} 10. c3 {[%clk 0:02:52]}  e6 {[%clk 0:02:50]} 11. Qh3 {[%clk 0:02:45]}  Rg8 {[%clk 0:02:42]} 12. Bc4 {[%clk 0:02:25]}  Bd6 {[%clk 0:02:38]} 13. Bg5 {[%clk 0:02:25]}  Bg6 {[%clk 0:02:36]} 14. O-O-O {[%clk 0:01:54]}  Qc7 {[%clk 0:02:12]} 15. Rhe1 {[%clk 0:01:45]}  O-O-O {[%clk 0:02:05]} 16. Nxg6 {[%clk 0:01:39]}  hxg6 {[%clk 0:02:05]} 17. Qf3 {[%clk 0:01:40]}  Rh8 {[%clk 0:01:56]} 18. h4 {[%clk 0:01:39]}  Rde8 {[%clk 0:01:45]} 19. g3 {[%clk 0:01:39]}  Nd5 {[%clk 0:01:43]} 20. Kb1 {[%clk 0:01:39]}  Kb8 {[%clk 0:01:36]} 21. Bc1 {[%clk 0:01:37]}  Rd8 {[%clk 0:01:30]} 22. Bb3 {[%clk 0:01:36]}  Rhe8 {[%clk 0:01:30]} 23. Re2 {[%clk 0:01:36]}  a5 {[%clk 0:01:29]} 24. c4 {[%clk 0:01:24]}  Nf6 {[%clk 0:01:20]} 25. c5 {[%clk 0:01:25]}  Bf8 {[%clk 0:00:34]} 26. Bf4 {[%clk 0:01:24]}  e5 {[%clk 0:00:25]} 27. Rxe5 {[%clk 0:01:17]} 1-0


[Site "https://www.chess.com"]

[Event "Titled Tuesday Blitz March 28 Early 2023"]
[White "Kramnik, Vladimir"]
[Black "Iniyan, P"]
[WhiteFideId "4101588"]
[BlackFideId "25002767"]
[WhiteElo "2712"]
[BlackElo "2449"]
[Result "1-0"]
[Round "08"]
[TimeControl "180+2"]
[Date "2023.03.28"]
[WhiteClock "0:00:35"]
[BlackClock "0:00:13"]

1. c4 {[%clk 0:03:00]}  Nf6 {[%clk 0:02:59]} 2. Nc3 {[%clk 0:02:59]}  e5 {[%clk 0:02:59]} 3. Nf3 {[%clk 0:02:58]}  Nc6 {[%clk 0:02:59]} 4. g3 {[%clk 0:02:57]}  g6 {[%clk 0:02:57]} 5. Bg2 {[%clk 0:02:56]}  Bg7 {[%clk 0:02:58]} 6. O-O {[%clk 0:02:56]}  O-O {[%clk 0:02:58]} 7. d3 {[%clk 0:02:56]}  d6 {[%clk 0:02:57]} 8. Rb1 {[%clk 0:02:56]}  Re8 {[%clk 0:02:56]} 9. b4 {[%clk 0:02:54]}  a6 {[%clk 0:02:51]} 10. a4 {[%clk 0:02:53]}  e4 {[%clk 0:02:50]} 11. dxe4 {[%clk 0:02:51]}  Nxe4 {[%clk 0:02:51]} 12. Nxe4 {[%clk 0:02:50]}  Rxe4 {[%clk 0:02:52]} 13. Nd2 {[%clk 0:02:48]}  Re8 {[%clk 0:02:48]} 14. e3 {[%clk 0:02:42]}  Bf5 {[%clk 0:02:45]} 15. Rb3 {[%clk 0:02:34]}  a5 {[%clk 0:02:45]} 16. b5 {[%clk 0:02:31]}  Nb4 {[%clk 0:02:45]} 17. Bxb7 {[%clk 0:02:26]}  Bc2 {[%clk 0:02:35]} 18. Qe2 {[%clk 0:02:25]}  Bxb3 {[%clk 0:02:29]} 19. Nxb3 {[%clk 0:02:25]}  Ra7 {[%clk 0:02:17]} 20. Bg2 {[%clk 0:02:24]}  Qc8 {[%clk 0:02:06]} 21. Bd2 {[%clk 0:02:01]}  Qf5 {[%clk 0:01:56]} 22. Bxb4 {[%clk 0:01:57]}  axb4 {[%clk 0:01:54]} 23. a5 {[%clk 0:01:57]}  Qc8 {[%clk 0:01:25]} 24. Rd1 {[%clk 0:01:55]}  h5 {[%clk 0:01:14]} 25. h4 {[%clk 0:01:55]}  Bc3 {[%clk 0:01:12]} 26. Bd5 {[%clk 0:01:52]}  Kg7 {[%clk 0:01:11]} 27. Kg2 {[%clk 0:01:51]}  Re7 {[%clk 0:01:11]} 28. Qf3 {[%clk 0:01:49]}  Qd8 {[%clk 0:01:05]} 29. a6 {[%clk 0:01:35]}  c5 {[%clk 0:01:04]} 30. Bc6 {[%clk 0:01:29]}  Qc7 {[%clk 0:01:03]} 31. Qd5 {[%clk 0:01:27]}  Re6 {[%clk 0:01:03]} 32. Bb7 {[%clk 0:01:18]}  Bf6 {[%clk 0:00:58]} 33. Qc6 {[%clk 0:01:16]}  Bd8 {[%clk 0:00:59]} 34. Qxc7 {[%clk 0:00:56]}  Bxc7 {[%clk 0:00:59]} 35. Rd3 {[%clk 0:00:54]}  Kf8 {[%clk 0:00:53]} 36. Bd5 {[%clk 0:00:52]}  Re7 {[%clk 0:00:51]} 37. e4 {[%clk 0:00:52]}  Kg7 {[%clk 0:00:51]} 38. f4 {[%clk 0:00:51]}  Kf8 {[%clk 0:00:48]} 39. Kf3 {[%clk 0:00:49]}  Bb6 {[%clk 0:00:47]} 40. Bc6 {[%clk 0:00:49]}  Bc7 {[%clk 0:00:46]} 41. Nd2 {[%clk 0:00:45]}  Kg7 {[%clk 0:00:45]} 42. Nf1 {[%clk 0:00:45]}  f5 {[%clk 0:00:33]} 43. Ne3 {[%clk 0:00:42]}  fxe4+ {[%clk 0:00:33]} 44. Bxe4 {[%clk 0:00:42]}  Rf7 {[%clk 0:00:26]} 45. Bd5 {[%clk 0:00:41]}  Re7 {[%clk 0:00:21]} 46. Bc6 {[%clk 0:00:41]}  Rxe3+ {[%clk 0:00:21]} 47. Rxe3 {[%clk 0:00:40]}  Kf7 {[%clk 0:00:19]} 48. Bd5+ {[%clk 0:00:40]}  Kf8 {[%clk 0:00:19]} 49. Re6 {[%clk 0:00:39]}  Bd8 {[%clk 0:00:15]} 50. Ke2 {[%clk 0:00:36]}  Be7 {[%clk 0:00:13]} 51. Kd3 {[%clk 0:00:35]}  Kg7 {[%clk 0:00:13]} 52. Kc2 {[%clk 0:00:35]} 1-0


[Site "https://www.chess.com"]